Workbook

Sheet Question 1
A1: YIELD / CONSUMPTION UNDER AUTARKY | F1: UTILITY UNDER AUTARKY | J1: CONSUMPTION / UTILITY UNDER RISK SHARING | Q1: PARAMETERS
A2: Time Period | B2: Yield Ridhi | C2: Yield Neha | D2: State (H=1, L=0) | F2: Time Period | G2: U Ridhi Autarky | H2: U Neha Autarky | J2: Time Period | K2: C Ridhi | L2: C Neha | M2: U Ridhi RS | N2: U Neha RS | Q2: CES utility: U(c) = (c^(1-𝜃)-1)/(1-𝜃)
A3: 1 | B3: 10 | C3: 10 | D3: 0 | E3: 0 | F3: 1 | G3: =(POWER(B3, 1-$R$4)-1)/(1-$R$4) -> 2.305238078 | H3: =(POWER(C3, 1-$T$4)-1)/(1-$T$4) -> 8.985986625 | J3: 1 | K3: =B3-D3*$T$10+(1-D3)*$T$11 -> 19 | L3: =C3+D3*$T$10-(1-D3)*$T$11 -> 1 | M3: =(POWER(B3-D3*$T$10+(1-D3)*$T$11, 1-$R$4)-1)/(1-$R$4) -> 2.948778097 | N3: =(POWER(C3+D3*$T$10-(1-D3)*$T$11, 1-$T$4)-1)/(1-$T$4) -> 0 | Q3: Ridhi parameters | S3: Neha parameters
A4: 2 | B4: 28 | C4: 28 | D4: 1 | E4: 0 | F4: 2 | G4: 3.337762475 | H4: 26.93378734 | J4: 2 | K4: 19 | L4: 37 | M4: 2.948778097 | N4: 35.9025395 | Q4: 𝜃: | R4: 0.999 | S4: 𝜃: | T4: 0.001 | U4: Toggle risk aversion (1=highly risk averse, 0=risk neutral)
A5: 3 | B5: 10 | C5: 10 | D5: 0 | E5: 0 | F5: 3 | G5: 2.305238078 | H5: 8.985986625 | J5: 3 | K5: 19 | L5: 1 | M5: 2.948778097 | N5: 0
A6: 4 | B6: 28 | C6: 28 | D6: 1 | E6: 0 | F6: 4 | G6: 3.337762475 | H6: 26.93378734 | J6: 4 | K6: 19 | L6: 37 | M6: 2.948778097 | N6: 35.9025395 | Q6: yield in L: | R6: 10 | T6: 10 | U6: Toggle mean yield in low state
A7: 5 | B7: 28 | C7: 28 | D7: 1 | E7: 1 | F7: 5 | G7: 3.337762475 | H7: 26.93378734 | J7: 5 | K7: 19 | L7: 37 | M7: 2.948778097 | N7: 35.9025395 | Q7: yield in H: | R7: 28 | T7: 28 | U7: Toggle mean yield in high state
A8: 6 | B8: 10 | C8: 10 | D8: 0 | E8: 1 | F8: 6 | G8: 2.305238078 | H8: 8.985986625 | J8: 6 | K8: 19 | L8: 1 | M8: 2.948778097 | N8: 0 | Q8: notes: | R8: U(c) ~ ln(c) | S8: notes: | T8: U(c) ~ c-1
A9: 7 | B9: 28 | C9: 28 | D9: 1 | E9: 1 | F9: 7 | G9: 3.337762475 | H9: 26.93378734 | J9: 7 | K9: 19 | L9: 37 | M9: 2.948778097 | N9: 35.9025395 | R9: very averse | T9: near neutral
A10: 8 | B10: 10 | C10: 10 | D10: 0 | E10: 0 | F10: 8 | G10: 2.305238078 | H10: 8.985986625 | J10: 8 | K10: 19 | L10: 1 | M10: 2.948778097 | N10: 0 | Q10: Amount Ridhi gives to Neha in H: | T10: 9
A11: 9 | B11: 10 | C11: 10 | D11: 0 | E11: 0 | F11: 9 | G11: 2.305238078 | H11: 8.985986625 | J11: 9 | K11: 19 | L11: 1 | M11: 2.948778097 | N11: 0 | Q11: Amount Neha gives to Ridhi in L: | T11: 9
A12: 10 | B12: 28 | C12: 28 | D12: 1 | E12: 0 | F12: 10 | G12: 3.337762475 | H12: 26.93378734 | J12: 10 | K12: 19 | L12: 37 | M12: 2.948778097 | N12: 35.9025395
A13: 11 | B13: 10 | C13: 10 | D13: 0 | E13: 0 | F13: 11 | G13: 2.305238078 | H13: 8.985986625 | J13: 11 | K13: 19 | L13: 1 | M13: 2.948778097 | N13: 0 | Q13: Contents of colored boxes may be freely modified
A14: 12 | B14: 28 | C14: 28 | D14: 1 | E14: 1 | F14: 12 | G14: 3.337762475 | H14: 26.93378734 | J14: 12 | K14: 19 | L14: 37 | M14: 2.948778097 | N14: 35.9025395
A15: 13 | B15: 28 | C15: 28 | D15: 1 | E15: 1 | F15: 13 | G15: 3.337762475 | H15: 26.93378734 | J15: 13 | K15: 19 | L15: 37 | M15: 2.948778097 | N15: 35.9025395
A16: 14 | B16: 10 | C16: 10 | D16: 0 | E16: 1 | F16: 14 | G16: 2.305238078 | H16: 8.985986625 | J16: 14 | K16: 19 | L16: 1 | M16: 2.948778097 | N16: 0
A17: 15 | B17: 28 | C17: 28 | D17: 1 | E17: 0 | F17: 15 | G17: 3.337762475 | H17: 26.93378734 | J17: 15 | K17: 19 | L17: 37 | M17: 2.948778097 | N17: 35.9025395
A18: 16 | B18: 28 | C18: 28 | D18: 1 | E18: 0 | F18: 16 | G18: 3.337762475 | H18: 26.93378734 | J18: 16 | K18: 19 | L18: 37 | M18: 2.948778097 | N18: 35.9025395 | R18: Endowment Over States
A19: 17 | B19: 10 | C19: 10 | D19: 0 | E19: 1 | F19: 17 | G19: 2.305238078 | H19: 8.985986625 | J19: 17 | K19: 19 | L19: 1 | M19: 2.948778097 | N19: 0 | R19: High | S19: Low
A20: 18 | B20: 28 | C20: 28 | D20: 1 | E20: 0 | F20: 18 | G20: 3.337762475 | H20: 26.93378734 | J20: 18 | K20: 19 | L20: 37 | M20: 2.948778097 | N20: 35.9025395 | Q20: Ridhi | R20: =R7 -> 28 | S20: =R6 -> 10 | T20: (Mean)
A21: 19 | B21: 10 | C21: 10 | D21: 0 | E21: 0 | F21: 19 | G21: 2.305238078 | H21: 8.985986625 | J21: 19 | K21: 19 | L21: 1 | M21: 2.948778097 | N21: 0 | Q21: Neha | R21: =T7 -> 28 | S21: =T6 -> 10 | T21: (Mean)
A22: 20 | B22: 10 | C22: 10 | D22: 0 | E22: 0 | F22: 20 | G22: 2.305238078 | H22: 8.985986625 | J22: 20 | K22: 19 | L22: 1 | M22: 2.948778097 | N22: 0
A23: 21 | B23: 10 | C23: 10 | D23: 0 | E23: 0 | F23: 21 | G23: 2.305238078 | H23: 8.985986625 | J23: 21 | K23: 19 | L23: 1 | M23: 2.948778097 | N23: 0 | Q23: Percent high states | S23: =AVERAGE(D3:D32) -> 0.5
A24: 22 | B24: 28 | C24: 28 | D24: 1 | E24: 0 | F24: 22 | G24: 3.337762475 | H24: 26.93378734 | J24: 22 | K24: 19 | L24: 37 | M24: 2.948778097 | N24: 35.9025395 | Q24: in this particular draw:
A25: 23 | B25: 28 | C25: 28 | D25: 1 | E25: 0 | F25: 23 | G25: 3.337762475 | H25: 26.93378734 | J25: 23 | K25: 19 | L25: 37 | M25: 2.948778097 | N25: 35.9025395
A26: 24 | B26: 28 | C26: 28 | D26: 1 | E26: 0 | F26: 24 | G26: 3.337762475 | H26: 26.93378734 | J26: 24 | K26: 19 | L26: 37 | M26: 2.948778097 | N26: 35.9025395
A27: 25 | B27: 10 | C27: 10 | D27: 0 | E27: 1 | F27: 25 | G27: 2.305238078 | H27: 8.985986625 | J27: 25 | K27: 19 | L27: 1 | M27: 2.948778097 | N27: 0 | Q27: RESULTS
A28: 26 | B28: 10 | C28: 10 | D28: 0 | E28: 1 | F28: 26 | G28: 2.305238078 | H28: 8.985986625 | J28: 26 | K28: 19 | L28: 1 | M28: 2.948778097 | N28: 0 | R28: IN 30 PERIOD SIMULATION | T28: IN EXPECTATION
A29: 27 | B29: 10 | C29: 10 | D29: 0 | E29: 1 | F29: 27 | G29: 2.305238078 | H29: 8.985986625 | J29: 27 | K29: 19 | L29: 1 | M29: 2.948778097 | N29: 0 | R29: AUTARKY | S29: R. SHARING | T29: AUTARKY | U29: R. SHARING
A30: 28 | B30: 10 | C30: 10 | D30: 0 | E30: 0 | F30: 28 | G30: 2.305238078 | H30: 8.985986625 | J30: 28 | K30: 19 | L30: 1 | M30: 2.948778097 | N30: 0 | Q30: Mean U Ridhi | R30: =AVERAGE(G3:G32) -> 2.821500277 | S30: =AVERAGE(M3:M32) -> 2.948778097 | T30: =1/2*((R6^(1-R4)-1)/(1-R4)+(R7^(1-R4)-1)/(1-R4)) -> 2.821500277 | U30: =1/2*(((R6+T11)^(1-R4)-1)/(1-R4)+((R7-T10)^(1-R4)-1)/(1-R4)) -> 2.948778097
A31: 29 | B31: 28 | C31: 28 | D31: 1 | E31: 0 | F31: 29 | G31: 3.337762475 | H31: 26.93378734 | J31: 29 | K31: 19 | L31: 37 | M31: 2.948778097 | N31: 35.9025395 | Q31: Mean U Neha | R31: =AVERAGE(H3:H32) -> 17.95988698 | S31: =AVERAGE(N3:N32) -> 17.95126975 | T31: =1/2*((T6^(1-T4)-1)/(1-T4)+(T7^(1-T4)-1)/(1-T4)) -> 17.95988698 | U31: =1/2*(((T6-T11)^(1-T4)-1)/(1-T4)+((T7+T10)^(1-T4)-1)/(1-T4)) -> 17.95126975
A32: 30 | B32: 28 | C32: 28 | D32: 1 | E32: 1 | F32: 30 | G32: 3.337762475 | H32: 26.93378734 | J32: 30 | K32: 19 | L32: 37 | M32: 2.948778097 | N32: 35.9025395
G34: GRAPHS

Sheet Question 2
A1: YIELD | F1: UTILITY UNDER AUTARKY | J1: CONSUMPTION / UTILITY UNDER RISK SHARING | Q1: PARAMETERS
A2: Time Period | B2: Yield Ridhi | C2: Yield Neha | D2: State (H=1, L=0) | F2: Time Period | G2: U Ridhi Autarky | H2: U Neha Autarky | J2: Time Period | K2: C Ridhi | L2: C Neha | M2: U Ridhi RS | N2: U Neha RS | Q2: CES utility: U(c) = (c^(1-𝜃)-1)/(1-𝜃)
A3: 1 | B3: 28 | C3: 28 | D3: 1 | F3: 1 | G3: =(POWER(B3, 1-$T$4)-1)/(1-$T$4) -> 3.337762475 | H3: =(POWER(C3, 1-$T$4)-1)/(1-$T$4) -> 3.337762475 | J3: 1 | K3: =B3-D3*$T$10+(1-D3)*$T$11 -> 19 | L3: =C3+D3*$T$10-(1-D3)*$T$11 -> 37 | M3: =(POWER(B3-D3*$T$10+(1-D3)*$T$11, 1-$T$4)-1)/(1-$T$4) -> 2.948778097 | N3: =(POWER(C3+D3*$T$10-(1-D3)*$T$11, 1-$T$4)-1)/(1-$T$4) -> 3.617445131 | Q3: Ridhi parameters | S3: Neha parameters
A4: 2 | B4: 28 | C4: 28 | D4: 1 | F4: 2 | G4: =(POWER(B4, 1-$T$4)-1)/(1-$T$4) -> 3.337762475 | H4: 3.337762475 | J4: 2 | K4: 19 | L4: 37 | M4: =(POWER(B4-D4*$T$10+(1-D4)*$T$11, 1-$T$4)-1)/(1-$T$4) -> 2.948778097 | N4: 3.617445131 | Q4: 𝜃: | T4: 0.999 | U4: Toggle risk aversion FOR BOTH Ridhi and Neha (1=highly risk averse, 0=risk neutral)
A5: 3 | B5: 10 | C5: 10 | D5: 0 | F5: 3 | G5: 2.305238078 | H5: 2.305238078 | J5: 3 | K5: 19 | L5: 1 | M5: 2.948778097 | N5: 0
A6: 4 | B6: 28 | C6: 28 | D6: 1 | F6: 4 | G6: 3.337762475 | H6: 3.337762475 | J6: 4 | K6: 19 | L6: 37 | M6: 2.948778097 | N6: 3.617445131 | Q6: yield in L: | R6: 10 | T6: 10 | U6: Toggle mean yield in low state
A7: 5 | B7: 28 | C7: 28 | D7: 1 | F7: 5 | G7: 3.337762475 | H7: 3.337762475 | J7: 5 | K7: 19 | L7: 37 | M7: 2.948778097 | N7: 3.617445131 | Q7: yield in H: | R7: 28 | T7: 28 | U7: Toggle mean yield in high state
A8: 6 | B8: 28 | C8: 28 | D8: 1 | F8: 6 | G8: 3.337762475 | H8: 3.337762475 | J8: 6 | K8: 19 | L8: 37 | M8: 2.948778097 | N8: 3.617445131 | Q8: notes: | R8: U(c) ~ ln(c) | S8: notes: | T8: U(c) ~ c-1
A9: 7 | B9: 10 | C9: 10 | D9: 0 | F9: 7 | G9: 2.305238078 | H9: 2.305238078 | J9: 7 | K9: 19 | L9: 1 | M9: 2.948778097 | N9: 0 | R9: very averse | T9: near neutral
A10: 8 | B10: 28 | C10: 28 | D10: 1 | F10: 8 | G10: 3.337762475 | H10: 3.337762475 | J10: 8 | K10: 19 | L10: 37 | M10: 2.948778097 | N10: 3.617445131 | Q10: Amount Ridhi gives to Neha in H: | T10: 9
A11: 9 | B11: 28 | C11: 28 | D11: 1 | F11: 9 | G11: 3.337762475 | H11: 3.337762475 | J11: 9 | K11: 19 | L11: 37 | M11: 2.948778097 | N11: 3.617445131 | Q11: Amount Neha gives to Ridhi in L: | T11: 9
A12: 10 | B12: 10 | C12: 10 | D12: 0 | F12: 10 | G12: 2.305238078 | H12: 2.305238078 | J12: 10 | K12: 19 | L12: 1 | M12: 2.948778097 | N12: 0
A13: 11 | B13: 28 | C13: 28 | D13: 1 | F13: 11 | G13: 3.337762475 | H13: 3.337762475 | J13: 11 | K13: 19 | L13: 37 | M13: 2.948778097 | N13: 3.617445131
A14: 12 | B14: 10 | C14: 10 | D14: 0 | F14: 12 | G14: 2.305238078 | H14: 2.305238078 | J14: 12 | K14: 19 | L14: 1 | M14: 2.948778097 | N14: 0 | Q14: Contents of colored boxes may be freely modified
A15: 13 | B15: 10 | C15: 10 | D15: 0 | F15: 13 | G15: 2.305238078 | H15: 2.305238078 | J15: 13 | K15: 19 | L15: 1 | M15: 2.948778097 | N15: 0
A16: 14 | B16: 28 | C16: 28 | D16: 1 | F16: 14 | G16: 3.337762475 | H16: 3.337762475 | J16: 14 | K16: 19 | L16: 37 | M16: 2.948778097 | N16: 3.617445131 | R16: 0
A17: 15 | B17: 28 | C17: 28 | D17: 1 | F17: 15 | G17: 3.337762475 | H17: 3.337762475 | J17: 15 | K17: 19 | L17: 37 | M17: 2.948778097 | N17: 3.617445131 | R17: 0
A18: 16 | B18: 10 | C18: 10 | D18: 0 | F18: 16 | G18: 2.305238078 | H18: 2.305238078 | J18: 16 | K18: 19 | L18: 1 | M18: 2.948778097 | N18: 0 | R18: Endowment Over States
A19: 17 | B19: 28 | C19: 28 | D19: 1 | F19: 17 | G19: 3.337762475 | H19: 3.337762475 | J19: 17 | K19: 19 | L19: 37 | M19: 2.948778097 | N19: 3.617445131 | R19: High | S19: Low
A20: 18 | B20: 28 | C20: 28 | D20: 1 | F20: 18 | G20: 3.337762475 | H20: 3.337762475 | J20: 18 | K20: 19 | L20: 37 | M20: 2.948778097 | N20: 3.617445131 | Q20: Ridhi | R20: =R7 -> 28 | S20: =R6 -> 10 | T20: (Mean)
A21: 19 | B21: 28 | C21: 28 | D21: 1 | F21: 19 | G21: 3.337762475 | H21: 3.337762475 | J21: 19 | K21: 19 | L21: 37 | M21: 2.948778097 | N21: 3.617445131 | Q21: Neha | R21: =T7 -> 28 | S21: =T6 -> 10 | T21: (Mean)
A22: 20 | B22: 28 | C22: 28 | D22: 1 | F22: 20 | G22: 3.337762475 | H22: 3.337762475 | J22: 20 | K22: 19 | L22: 37 | M22: 2.948778097 | N22: 3.617445131
A23: 21 | B23: 10 | C23: 10 | D23: 0 | F23: 21 | G23: 2.305238078 | H23: 2.305238078 | J23: 21 | K23: 19 | L23: 1 | M23: 2.948778097 | N23: 0 | Q23: Percent high states | S23: =AVERAGE(D3:D32) -> 0.5666666667
A24: 22 | B24: 28 | C24: 28 | D24: 1 | F24: 22 | G24: 3.337762475 | H24: 3.337762475 | J24: 22 | K24: 19 | L24: 37 | M24: 2.948778097 | N24: 3.617445131 | Q24: in this particular draw:
A25: 23 | B25: 10 | C25: 10 | D25: 0 | F25: 23 | G25: 2.305238078 | H25: 2.305238078 | J25: 23 | K25: 19 | L25: 1 | M25: 2.948778097 | N25: 0
A26: 24 | B26: 10 | C26: 10 | D26: 0 | F26: 24 | G26: 2.305238078 | H26: 2.305238078 | J26: 24 | K26: 19 | L26: 1 | M26: 2.948778097 | N26: 0
A27: 25 | B27: 28 | C27: 28 | D27: 1 | F27: 25 | G27: 3.337762475 | H27: 3.337762475 | J27: 25 | K27: 19 | L27: 37 | M27: 2.948778097 | N27: 3.617445131 | Q27: RESULTS
A28: 26 | B28: 28 | C28: 28 | D28: 1 | F28: 26 | G28: 3.337762475 | H28: 3.337762475 | J28: 26 | K28: 19 | L28: 37 | M28: 2.948778097 | N28: 3.617445131 | R28: IN 30 PERIOD SIMULATION | T28: IN EXP. with U(x) = ln(x)
A29: 27 | B29: 10 | C29: 10 | D29: 0 | F29: 27 | G29: 2.305238078 | H29: 2.305238078 | J29: 27 | K29: 19 | L29: 1 | M29: 2.948778097 | N29: 0 | R29: AUTARKY | S29: R. SHARING | T29: AUTARKY | U29: R. SHARING
A30: 28 | B30: 10 | C30: 10 | D30: 0 | F30: 28 | G30: 2.305238078 | H30: 2.305238078 | J30: 28 | K30: 19 | L30: 1 | M30: 2.948778097 | N30: 0 | Q30: Mean U Ridhi | R30: =AVERAGE(G3:G32) -> 2.890335236 | S30: =AVERAGE(M3:M32) -> 2.948778097 | T30: =1/2*((R6^(1-T4)-1)/(1-T4)+(R7^(1-T4)-1)/(1-T4)) -> 2.821500277 | U30: =1/2*(((R6+T11)^(1-T4)-1)/(1-T4)+((R7-T10)^(1-T4)-1)/(1-T4)) -> 2.948778097
A31: 29 | B31: 10 | C31: 10 | D31: 0 | F31: 29 | G31: 2.305238078 | H31: 2.305238078 | J31: 29 | K31: 19 | L31: 1 | M31: 2.948778097 | N31: 0 | Q31: Mean U Neha | R31: =AVERAGE(H3:H32) -> 2.890335236 | S31: =AVERAGE(N3:N32) -> 2.049885574 | T31: =1/2*((T6^(1-T4)-1)/(1-T4)+(T7^(1-T4)-1)/(1-T4)) -> 2.821500277 | U31: =1/2*(((T6-T11)^(1-T4)-1)/(1-T4)+((T7+T10)^(1-T4)-1)/(1-T4)) -> 1.808722565
A32: 30 | B32: 10 | C32: 10 | D32: 0 | F32: 30 | G32: 2.305238078 | H32: 2.305238078 | J32: 30 | K32: 19 | L32: 1 | M32: 2.948778097 | N32: 0
G34: GRAPHS

Sheet Question 3
A1: YIELD | G1: UTILITY UNDER AUTARKY | K1: UTILTY UNDER RISK SHARING | Q1: PARAMETERS
A2: Time Period | B2: Yield Ridhi | C2: Yield Neha | D2: Ridhi State | E2: Neha State (H=1, L=0) | G2: Time Period | H2: U Ridhi Autarky | I2: U Neha Autarky | K2: Time Period | L2: C Ridhi RS | M2: C Neha RS | N2: U Ridhi RS | O2: U Neha RS | Q2: CES utility: U(c) = (c^(1-𝜃)-1)/(1-𝜃)
A3: 1 | B3: 28 | C3: 10 | D3: 1 | E3: 0 | G3: 1 | H3: =(POWER(B3, 1-$T$4)-1)/(1-$T$4) -> 3.337762475 | I3: =(POWER(C3, 1-$T$4)-1)/(1-$T$4) -> 2.305238078 | K3: 1 | L3: =B3-D3*$T$10+E3*$T$11 -> 22 | M3: =C3+D3*$T$10-E3*$T$11 -> 16 | N3: =(POWER(B3-D3*$T$10+E3*$T$11, 1-$T$4)-1)/(1-$T$4) -> 3.095824651 | O3: =(POWER(C3+D3*$T$10-E3*$T$11, 1-$T$4)-1)/(1-$T$4) -> 2.776435901 | Q3: Ridhi parameters | S3: Neha parameters
A4: 2 | B4: 28 | C4: 10 | D4: 1 | E4: 0 | G4: 2 | H4: 3.337762475 | I4: 2.305238078 | K4: 2 | L4: =B4-D4*$T$10+E4*$T$11 -> 22 | M4: =C4+D4*$T$10-E4*$T$11 -> 16 | N4: =(POWER(B4-D4*$T$10+E4*$T$11, 1-$T$4)-1)/(1-$T$4) -> 3.095824651 | O4: =(POWER(C4+D4*$T$10-E4*$T$11, 1-$T$4)-1)/(1-$T$4) -> 2.776435901 | Q4: 𝜃: | T4: 0.999 | U4: Toggle risk aversion FOR BOTH Ridhi and Neha (1=highly risk averse, 0=risk neutral)
A5: 3 | B5: 28 | C5: 28 | D5: 1 | E5: 1 | G5: 3 | H5: 3.337762475 | I5: 3.337762475 | K5: 3 | L5: 29 | M5: 27 | N5: 3.372971539 | O5: 3.301274108
A6: 4 | B6: 10 | C6: 28 | D6: 0 | E6: 1 | G6: 4 | H6: 2.305238078 | I6: 3.337762475 | K6: 4 | L6: 17 | M6: 21 | N6: 2.837230686 | O6: 3.049161703 | Q6: yield in L: | R6: 10 | T6: 10 | U6: Toggle mean yield in low state
A7: 5 | B7: 28 | C7: 28 | D7: 1 | E7: 1 | G7: 5 | H7: 3.337762475 | I7: 3.337762475 | K7: 5 | L7: 29 | M7: 27 | N7: 3.372971539 | O7: 3.301274108 | Q7: yield in H: | R7: 28 | T7: 28 | U7: Toggle mean yield in high state
A8: 6 | B8: 10 | C8: 28 | D8: 0 | E8: 1 | G8: 6 | H8: 2.305238078 | I8: 3.337762475 | K8: 6 | L8: 17 | M8: 21 | N8: 2.837230686 | O8: 3.049161703 | Q8: notes: | R8: U(c) ~ ln(c) | S8: notes: | T8: U(c) ~ c-1
A9: 7 | B9: 28 | C9: 28 | D9: 1 | E9: 1 | G9: 7 | H9: 3.337762475 | I9: 3.337762475 | K9: 7 | L9: 29 | M9: 27 | N9: 3.372971539 | O9: 3.301274108 | R9: very averse | T9: near neutral
A10: 8 | B10: 10 | C10: 28 | D10: 0 | E10: 1 | G10: 8 | H10: 2.305238078 | I10: 3.337762475 | K10: 8 | L10: 17 | M10: 21 | N10: 2.837230686 | O10: 3.049161703 | Q10: Amount Ridhi gives to Neha in H: | T10: 6
A11: 9 | B11: 10 | C11: 10 | D11: 0 | E11: 0 | G11: 9 | H11: 2.305238078 | I11: 2.305238078 | K11: 9 | L11: 10 | M11: 10 | N11: 2.305238078 | O11: 2.305238078 | Q11: Amount Neha gives to Ridhi in H: | T11: 7
A12: 10 | B12: 28 | C12: 10 | D12: 1 | E12: 0 | G12: 10 | H12: 3.337762475 | I12: 2.305238078 | K12: 10 | L12: 22 | M12: 16 | N12: 3.095824651 | O12: 2.776435901
A13: 11 | B13: 28 | C13: 28 | D13: 1 | E13: 1 | G13: 11 | H13: 3.337762475 | I13: 3.337762475 | K13: 11 | L13: 29 | M13: 27 | N13: 3.372971539 | O13: 3.301274108 | Q13: Contents of colored boxes may be freely modified
A14: 12 | B14: 28 | C14: 28 | D14: 1 | E14: 1 | G14: 12 | H14: 3.337762475 | I14: 3.337762475 | K14: 12 | L14: 29 | M14: 27 | N14: 3.372971539 | O14: 3.301274108
A15: 13 | B15: 28 | C15: 28 | D15: 1 | E15: 1 | G15: 13 | H15: 3.337762475 | I15: 3.337762475 | K15: 13 | L15: 29 | M15: 27 | N15: 3.372971539 | O15: 3.301274108
A16: 14 | B16: 10 | C16: 28 | D16: 0 | E16: 1 | G16: 14 | H16: 2.305238078 | I16: 3.337762475 | K16: 14 | L16: 17 | M16: 21 | N16: 2.837230686 | O16: 3.049161703
A17: 15 | B17: 28 | C17: 10 | D17: 1 | E17: 0 | G17: 15 | H17: 3.337762475 | I17: 2.305238078 | K17: 15 | L17: 22 | M17: 16 | N17: 3.095824651 | O17: 2.776435901 | R17: Endowment Over States
A18: 16 | B18: 28 | C18: 10 | D18: 1 | E18: 0 | G18: 16 | H18: 3.337762475 | I18: 2.305238078 | K18: 16 | L18: 22 | M18: 16 | N18: 3.095824651 | O18: 2.776435901 | R18: High | S18: Low
A19: 17 | B19: 10 | C19: 28 | D19: 0 | E19: 1 | G19: 17 | H19: 2.305238078 | I19: 3.337762475 | K19: 17 | L19: 17 | M19: 21 | N19: 2.837230686 | O19: 3.049161703 | Q19: Ridhi | R19: =R7 -> 28 | S19: =R6 -> 10
A20: 18 | B20: 28 | C20: 10 | D20: 1 | E20: 0 | G20: 18 | H20: 3.337762475 | I20: 2.305238078 | K20: 18 | L20: 22 | M20: 16 | N20: 3.095824651 | O20: 2.776435901 | Q20: Neha | R20: =T7 -> 28 | S20: =T6 -> 10
A21: 19 | B21: 28 | C21: 28 | D21: 1 | E21: 1 | G21: 19 | H21: 3.337762475 | I21: 3.337762475 | K21: 19 | L21: 29 | M21: 27 | N21: 3.372971539 | O21: 3.301274108
A22: 20 | B22: 10 | C22: 28 | D22: 0 | E22: 1 | G22: 20 | H22: 2.305238078 | I22: 3.337762475 | K22: 20 | L22: 17 | M22: 21 | N22: 2.837230686 | O22: 3.049161703 | Q22: Percent high states | S22: =AVERAGE(D3:D32) -> 0.6333333333
A23: 21 | B23: 28 | C23: 28 | D23: 1 | E23: 1 | G23: 21 | H23: 3.337762475 | I23: 3.337762475 | K23: 21 | L23: 29 | M23: 27 | N23: 3.372971539 | O23: 3.301274108 | Q23: in Ridhi's draw:
A24: 22 | B24: 28 | C24: 10 | D24: 1 | E24: 0 | G24: 22 | H24: 3.337762475 | I24: 2.305238078 | K24: 22 | L24: 22 | M24: 16 | N24: 3.095824651 | O24: 2.776435901
A25: 23 | B25: 28 | C25: 10 | D25: 1 | E25: 0 | G25: 23 | H25: 3.337762475 | I25: 2.305238078 | K25: 23 | L25: 22 | M25: 16 | N25: 3.095824651 | O25: 2.776435901 | Q25: Percent high states | S25: =AVERAGE(E3:E32) -> 0.6
A26: 24 | B26: 10 | C26: 28 | D26: 0 | E26: 1 | G26: 24 | H26: 2.305238078 | I26: 3.337762475 | K26: 24 | L26: 17 | M26: 21 | N26: =(POWER(B26-D26*$T$10+E26*$T$11, 1-$T$4)-1)/(1-$T$4) -> 2.837230686 | O26: 3.049161703 | Q26: in Neha's draw:
A27: 25 | B27: 10 | C27: 28 | D27: 0 | E27: 1 | G27: 25 | H27: 2.305238078 | I27: 3.337762475 | K27: 25 | L27: 17 | M27: 21 | N27: 2.837230686 | O27: 3.049161703
A28: 26 | B28: 28 | C28: 28 | D28: 1 | E28: 1 | G28: 26 | H28: 3.337762475 | I28: 3.337762475 | K28: 26 | L28: 29 | M28: 27 | N28: 3.372971539 | O28: 3.301274108
A29: 27 | B29: 10 | C29: 10 | D29: 0 | E29: 0 | G29: 27 | H29: 2.305238078 | I29: 2.305238078 | K29: 27 | L29: 10 | M29: 10 | N29: 2.305238078 | O29: 2.305238078 | Q29: RESULTS
A30: 28 | B30: 28 | C30: 10 | D30: 1 | E30: 0 | G30: 28 | H30: 3.337762475 | I30: 2.305238078 | K30: 28 | L30: 22 | M30: 16 | N30: 3.095824651 | O30: 2.776435901 | R30: IN 30 PERIOD SIMULATION | T30: IN EXP. with U(x) = ln(x)
A31: 29 | B31: 28 | C31: 10 | D31: 1 | E31: 0 | G31: 29 | H31: 3.337762475 | I31: 2.305238078 | K31: 29 | L31: 22 | M31: 16 | N31: 3.095824651 | O31: 2.776435901 | R31: AUTARKY | S31: R. SHARING | T31: AUTARKY | U31: R. SHARING
A32: 30 | B32: 10 | C32: 28 | D32: 0 | E32: 1 | G32: 30 | H32: 2.305238078 | I32: 3.337762475 | K32: 30 | L32: 17 | M32: 21 | N32: 2.837230686 | O32: 3.049161703 | Q32: Mean U Ridhi | R32: =AVERAGE(H3:H32) -> 2.959170196 | S32: =AVERAGE(N3:N32) -> 3.048684757 | T32: =1/2*((R6^(1-T4)-1)/(1-T4)+(R7^(1-T4)-1)/(1-T4)) -> 2.821500277 | U32: =1/4*(((R6)^(1-T4)-1)/(1-T4)+((R6+T11)^(1-T4)-1)/(1-T4)+((R7-T10)^(1-T4)-1)/(1-T4)+((R7-T10+T11)^(1-T4)-1)/(1-T4)) -> 2.902816239
Q33: Mean U Neha | R33: =AVERAGE(I3:I32) -> 2.924752716 | S33: =AVERAGE(O3:O32) -> 2.984291916 | T33: =1/2*((T6^(1-T4)-1)/(1-T4)+(T7^(1-T4)-1)/(1-T4)) -> 2.821500277 | U33: =1/4*(((T6)^(1-T4)-1)/(1-T4)+((T6+T10)^(1-T4)-1)/(1-T4)+((T7-T11)^(1-T4)-1)/(1-T4)+((T7-T11+T10)^(1-T4)-1)/(1-T4)) -> 2.858027448
G34: GRAPHS

Sheet Question 4
A1: YIELD | G1: UTILITY UNDER AUTARKY | K1: UTILTY UNDER RISK SHARING | Q1: PARAMETERS
A2: Time Period | B2: Yield Ridhi | C2: Yield Neha | D2: Ridhi State | E2: Neha State (H=1, L=0) | G2: Time Period | H2: U Ridhi Autarky | I2: U Neha Autarky | K2: Time Period | L2: C Ridhi RS | M2: C Neha RS | N2: U Ridhi RS | O2: U Neha RS | Q2: CES utility: U(c) = (c^(1-𝜃)-1)/(1-𝜃)
A3: 1 | B3: 28 | C3: 10 | D3: 1 | E3: 0 | G3: 1 | H3: =(POWER(B3, 1-$R$4)-1)/(1-$R$4) -> 3.337762475 | I3: =(POWER(C3, 1-$T$4)-1)/(1-$T$4) -> 8.985986625 | K3: 1 | L3: =B3-D3*$T$10+E3*$T$11 -> 22 | M3: =C3+D3*$T$10-E3*$T$11 -> 16 | N3: =(POWER(B3-D3*$T$10+E3*$T$11, 1-$R$4)-1)/(1-$R$4) -> 3.095824651 | O3: =(POWER(C3+D3*$T$10-E3*$T$11, 1-$T$4)-1)/(1-$T$4) -> 14.97067069 | Q3: Ridhi parameters | S3: Neha parameters
A4: 2 | B4: 28 | C4: 28 | D4: 1 | E4: 1 | G4: 2 | H4: 3.337762475 | I4: 26.93378734 | K4: 2 | L4: =B4-D4*$T$10+E4*$T$11 -> 29 | M4: =C4+D4*$T$10-E4*$T$11 -> 27 | N4: =(POWER(B4-D4*$T$10+E4*$T$11, 1-$R$4)-1)/(1-$R$4) -> 3.372971539 | O4: =(POWER(C4+D4*$T$10-E4*$T$11, 1-$T$4)-1)/(1-$T$4) -> 25.93709598 | Q4: 𝜃: | R4: 0.999 | S4: 𝜃: | T4: 0.001 | U4: Toggle risk aversion (1=highly risk averse, 0=risk neutral)
A5: 3 | B5: 10 | C5: 28 | D5: 0 | E5: 1 | G5: 3 | H5: 2.305238078 | I5: 26.93378734 | K5: 3 | L5: 17 | M5: 21 | N5: 2.837230686 | O5: =(POWER(C5+D5*$T$10-E5*$T$11, 1-$T$4)-1)/(1-$T$4) -> 19.95611837
A6: 4 | B6: 28 | C6: 10 | D6: 1 | E6: 0 | G6: 4 | H6: 3.337762475 | I6: 8.985986625 | K6: 4 | L6: 22 | M6: 16 | N6: 3.095824651 | O6: 14.97067069 | Q6: yield in L: | R6: 10 | T6: 10 | U6: Toggle mean yield in low state
A7: 5 | B7: 10 | C7: 28 | D7: 0 | E7: 1 | G7: 5 | H7: 2.305238078 | I7: 26.93378734 | K7: 5 | L7: 17 | M7: 21 | N7: =(POWER(B7-D7*$T$10+E7*$T$11, 1-$R$4)-1)/(1-$R$4) -> 2.837230686 | O7: 19.95611837 | Q7: yield in H: | R7: 28 | T7: 28 | U7: Toggle mean yield in high state
A8: 6 | B8: 10 | C8: 10 | D8: 0 | E8: 0 | G8: 6 | H8: 2.305238078 | I8: 8.985986625 | K8: 6 | L8: 10 | M8: 10 | N8: 2.305238078 | O8: 8.985986625 | Q8: notes: | R8: U(c) ~ ln(c) | S8: notes: | T8: U(c) ~ c-1
A9: 7 | B9: 10 | C9: 10 | D9: 0 | E9: 0 | G9: 7 | H9: 2.305238078 | I9: 8.985986625 | K9: 7 | L9: 10 | M9: 10 | N9: 2.305238078 | O9: 8.985986625 | R9: very averse | T9: near neutral
A10: 8 | B10: 28 | C10: 28 | D10: 1 | E10: 1 | G10: 8 | H10: 3.337762475 | I10: 26.93378734 | K10: 8 | L10: 29 | M10: 27 | N10: 3.372971539 | O10: 25.93709598 | Q10: Amount Ridhi gives to Neha in H: | T10: 6
A11: 9 | B11: 28 | C11: 28 | D11: 1 | E11: 1 | G11: 9 | H11: 3.337762475 | I11: 26.93378734 | K11: 9 | L11: 29 | M11: 27 | N11: 3.372971539 | O11: 25.93709598 | Q11: Amount Neha gives to Ridhi in H: | T11: 7
A12: 10 | B12: 28 | C12: 10 | D12: 1 | E12: 0 | G12: 10 | H12: 3.337762475 | I12: 8.985986625 | K12: 10 | L12: 22 | M12: 16 | N12: 3.095824651 | O12: 14.97067069
A13: 11 | B13: 10 | C13: 10 | D13: 0 | E13: 0 | G13: 11 | H13: 2.305238078 | I13: 8.985986625 | K13: 11 | L13: 10 | M13: 10 | N13: 2.305238078 | O13: 8.985986625
A14: 12 | B14: 28 | C14: 28 | D14: 1 | E14: 1 | G14: 12 | H14: 3.337762475 | I14: 26.93378734 | K14: 12 | L14: 29 | M14: 27 | N14: 3.372971539 | O14: 25.93709598 | Q14: Contents of colored boxes may be freely modified
A15: 13 | B15: 10 | C15: 28 | D15: 0 | E15: 1 | G15: 13 | H15: 2.305238078 | I15: 26.93378734 | K15: 13 | L15: 17 | M15: 21 | N15: 2.837230686 | O15: 19.95611837
A16: 14 | B16: 28 | C16: 28 | D16: 1 | E16: 1 | G16: 14 | H16: 3.337762475 | I16: 26.93378734 | K16: 14 | L16: 29 | M16: 27 | N16: 3.372971539 | O16: 25.93709598
A17: 15 | B17: 10 | C17: 10 | D17: 0 | E17: 0 | G17: 15 | H17: 2.305238078 | I17: 8.985986625 | K17: 15 | L17: 10 | M17: 10 | N17: 2.305238078 | O17: 8.985986625
A18: 16 | B18: 10 | C18: 28 | D18: 0 | E18: 1 | G18: 16 | H18: 2.305238078 | I18: 26.93378734 | K18: 16 | L18: 17 | M18: 21 | N18: 2.837230686 | O18: 19.95611837 | R18: Endowment Over States
A19: 17 | B19: 10 | C19: 10 | D19: 0 | E19: 0 | G19: 17 | H19: 2.305238078 | I19: 8.985986625 | K19: 17 | L19: 10 | M19: 10 | N19: 2.305238078 | O19: 8.985986625 | R19: High | S19: Low
A20: 18 | B20: 28 | C20: 10 | D20: 1 | E20: 0 | G20: 18 | H20: 3.337762475 | I20: 8.985986625 | K20: 18 | L20: 22 | M20: 16 | N20: 3.095824651 | O20: 14.97067069 | Q20: Ridhi | R20: =R7 -> 28 | S20: =R6 -> 10
A21: 19 | B21: 28 | C21: 28 | D21: 1 | E21: 1 | G21: 19 | H21: 3.337762475 | I21: 26.93378734 | K21: 19 | L21: 29 | M21: 27 | N21: 3.372971539 | O21: 25.93709598 | Q21: Neha | R21: =T7 -> 28 | S21: =T6 -> 10
A22: 20 | B22: 28 | C22: 28 | D22: 1 | E22: 1 | G22: 20 | H22: 3.337762475 | I22: 26.93378734 | K22: 20 | L22: 29 | M22: 27 | N22: 3.372971539 | O22: 25.93709598
A23: 21 | B23: 28 | C23: 28 | D23: 1 | E23: 1 | G23: 21 | H23: 3.337762475 | I23: 26.93378734 | K23: 21 | L23: 29 | M23: 27 | N23: 3.372971539 | O23: 25.93709598 | Q23: Percent high states | S23: =AVERAGE(D3:D32) -> 0.6
A24: 22 | B24: 28 | C24: 10 | D24: 1 | E24: 0 | G24: 22 | H24: 3.337762475 | I24: 8.985986625 | K24: 22 | L24: 22 | M24: 16 | N24: 3.095824651 | O24: 14.97067069 | Q24: in Ridhi's draw:
A25: 23 | B25: 10 | C25: 10 | D25: 0 | E25: 0 | G25: 23 | H25: 2.305238078 | I25: 8.985986625 | K25: 23 | L25: 10 | M25: 10 | N25: 2.305238078 | O25: 8.985986625
A26: 24 | B26: 28 | C26: 10 | D26: 1 | E26: 0 | G26: 24 | H26: 3.337762475 | I26: 8.985986625 | K26: 24 | L26: 22 | M26: 16 | N26: 3.095824651 | O26: 14.97067069 | Q26: Percent high states | S26: =AVERAGE(E3:E32) -> 0.5
A27: 25 | B27: 10 | C27: 28 | D27: 0 | E27: 1 | G27: 25 | H27: 2.305238078 | I27: 26.93378734 | K27: 25 | L27: 17 | M27: 21 | N27: 2.837230686 | O27: 19.95611837 | Q27: in Neha's draw:
A28: 26 | B28: 10 | C28: 10 | D28: 0 | E28: 0 | G28: 26 | H28: 2.305238078 | I28: 8.985986625 | K28: 26 | L28: 10 | M28: 10 | N28: =(POWER(B28-D28*$T$10+E28*$T$11, 1-$R$4)-1)/(1-$R$4) -> 2.305238078 | O28: 8.985986625
A29: 27 | B29: 28 | C29: 10 | D29: 1 | E29: 0 | G29: 27 | H29: 3.337762475 | I29: 8.985986625 | K29: 27 | L29: 22 | M29: 16 | N29: 3.095824651 | O29: 14.97067069 | Q29: RESULTS
A30: 28 | B30: 28 | C30: 10 | D30: 1 | E30: 0 | G30: 28 | H30: 3.337762475 | I30: 8.985986625 | K30: 28 | L30: 22 | M30: 16 | N30: 3.095824651 | O30: 14.97067069 | R30: IN 30 PERIOD SIMULATION | T30: IN EXPECTATION
A31: 29 | B31: 28 | C31: 28 | D31: 1 | E31: 1 | G31: 29 | H31: 3.337762475 | I31: 26.93378734 | K31: 29 | L31: 29 | M31: 27 | N31: 3.372971539 | O31: 25.93709598 | R31: AUTARKY | S31: R. SHARING | T31: AUTARKY | U31: R. SHARING
A32: 30 | B32: 28 | C32: 28 | D32: 1 | E32: 1 | G32: 30 | H32: 3.337762475 | I32: 26.93378734 | K32: 30 | L32: 29 | M32: 27 | N32: 3.372971539 | O32: 25.93709598 | Q32: Mean U Ridhi | R32: =AVERAGE(H3:H32) -> 2.924752716 | S32: =AVERAGE(N3:N32) -> 2.960637753 | T32: =1/2*((R6^(1-R4)-1)/(1-R4)+(R7^(1-R4)-1)/(1-R4)) -> 2.821500277 | U32: =1/4*(((R6)^(1-R4)-1)/(1-R4)+((R6+T11)^(1-R4)-1)/(1-R4)+((R7-T10)^(1-R4)-1)/(1-R4)+((R7-T10+T11)^(1-R4)-1)/(1-R4)) -> 2.902816239
Q33: Mean U Neha | R33: =AVERAGE(I3:I32) -> 17.95988698 | S33: =AVERAGE(O3:O32) -> 18.06062745 | T33: =1/2*((T6^(1-T4)-1)/(1-T4)+(T7^(1-T4)-1)/(1-T4)) -> 17.95988698 | U33: =1/4*(((T6)^(1-T4)-1)/(1-T4)+((T6+T10)^(1-T4)-1)/(1-T4)+((T7-T11)^(1-T4)-1)/(1-T4)+((T7-T11+T10)^(1-T4)-1)/(1-T4)) -> 17.46246792
G34: GRAPHS
